Cogmind - Beta 16.1 @@@ ROGUE MODE // 2026.02.26 @ 13:57:17 Player: Fleshy Vegetable Bird Result: Destroyed by D-53 Grenadier with Mini Grenade Launcher Performance ------------- Evolutions (0) 0 Regions Visited (2) 400 Robots Destroyed (42) 210 Value Destroyed (554) 554 Prototype IDs (4) 80 Alien Tech Used (0) 0 Bonus (0) 0 TOTAL SCORE: 1244 Bonus ------- None Cogmind --------- Core Integrity 0/250 Matter 286/300 Energy 100/100 System Corruption 0% Temperature Cool (0) Movement Core (400) Ox7 Location -10/Mines Parts ------- > --- POWER (1) -------- (None) > --- PROPULSION (2) --- (None) > --- UTILITY (2) ------ Large Storage Unit > --- WEAPON (2) ------- Hammer > --- INVENTORY (15) --- Light Treads Light Treads Wheel Huge Storage Unit High-capacity Battery (250) High-capacity Battery (250) Medium Matter Pod (100) Structural Scanner Seismic Detector Shield Generator Grenade Launcher Grenade Launcher Peak State ------------ > --- POWER ------------ Ion Engine > --- PROPULSION ------- Wheel Wheel > --- UTILITY ---------- Large Storage Unit Shield Generator > --- WEAPON ----------- Assault Rifle Assault Rifle > --- INVENTORY -------- Light Treads Light Treads Wheel Wheel Huge Storage Unit High-capacity Battery High-capacity Battery Medium Matter Pod Structural Scanner Seismic Detector Shield Generator Grenade Launcher Grenade Launcher Hammer [Rating: 9] Favorites ----------- Power Ion Engine Engine Ion Engine Propulsion Wheel Treads Light Treads Wheel Wheel Utility Seismic Detector Device Seismic Detector Storage Large Storage Unit Weapon Assault Rifle Ballistic Gun Assault Rifle Launcher Grenade Launcher Impact Weapon Hammer Build | -11 -10 -10 ------- Run | Yrd Mat Min Slots Evolved . | . . . Power . | . . . Propulsion . | . . . Utility . | . . . Weapon . | . . . Parts Attached 23 | 7 10 6 Power 3 | 1 1 1 Engine 3 | 1 1 1 Core . | . . . Reactor . | . . . Propulsion 11 | 2 6 3 Treads 2 | . 2 . Leg . | . . . Wheel 9 | 2 4 3 Hover . | . . . Flight . | . . . Utility 4 | 2 1 1 Device 2 | 1 . 1 Storage 2 | 1 1 . Processor . | . . . Hackware . | . . . Protection . | . . . Artifact . | . . . Weapon 5 | 2 2 1 Energy Gun . | . . . Energy Cannon . | . . . Ballistic Gun 3 | 2 1 . Ballistic Cannon . | . . . Launcher 1 | . 1 . Special Weapon . | . . . Impact Weapon 1 | . . 1 Slashing Weapon . | . . . Piercing Weapon . | . . . Special Melee Weapon . | . . . Unidentified Prototypes . | . . . Parts Lost 8 | . . 8 Power 2 | . . 2 Propulsion 3 | . . 3 Utility 1 | . . 1 Weapon 2 | . . 2 Highest Loss Streak 8 | . . 8 To Critical Strikes . | . . . Average Backups 11 | 4 9 14 Power . | . . . Propulsion 4 | 3 4 3 Utility 4 | . 1 7 Weapon 2 | . 2 2 Tool/Special . | . . . Unused Backups 11 | . 2 9 Power . | . . . Propulsion 1 | . 1 . Utility 7 | . . 7 Weapon 3 | . 1 2 Tool/Special . | . . . Average Slot Usage (%) 99 | . 100 99 Engine 14 | . 14 14 Treads 1 | . 3 . Wheel 26 | . 24 28 Device 13 | . 14 13 Storage 14 | . 14 14 Ballistic Gun 26 | . 25 27 Launcher 1 | . 2 . Peak Build Rating 9 | 7 8 9 Average Rating 7 | 5 7 7 On Entrance 5 | . 7 8 Avg Prop Armor Cover (%) . | . . . Naked Turns . | . . . Heaviest Build 30 | 15 30 30 Greatest Support 40 | 20 40 20 Greatest Overweight (x) 7 | 2 1 7 Average Overweight (x) . | . . 1 Largest Inventory Capacity 15 | 8 15 15 Average Capacity 12 | 7 10 15 Most Carried 15 | 8 15 15 Average Carried 11 | 4 9 14 Final Capacity 15 | 8 15 15 Final Carried 15 | 8 15 12 Class Distribution -------------------- 100% | Mutant Dominant Class ---------------- Mutant | -10/Materials Mutant | -10/Mines Resources | -11 -10 -10 ----------- Run | Yrd Mat Min Matter Collected 1171 | 342 372 457 Remotely . | . . . Salvage Created 918 | 183 564 171 Parts 100 | 15 56 29 Haulers Intercepted 2 | . 2 . Recyclers Shooed 1 | 1 . . Parts Field Recycled . | . . . Retrieved Matter . | . . . Parts Self-Destructed . | . . . Prevented . | . . . Parts Restored . | . . . Kills | -11 -10 -10 ------- Run | Yrd Mat Min Combat Hostiles Destroyed 22 | . 16 6 Guns 14 | . 8 6 AOE 8 | . 8 . Classes Destroyed 8 | 2 6 . Worker 4 | . 2 2 Builder 2 | . 2 . Tunneler 9 | 5 . 4 Hauler 2 | . 2 . Recycler 1 | 1 . . Watcher 2 | . 2 . Swarmer 14 | . 8 6 Grunt 8 | . 8 . Best Kill Streak 7 | 5 7 4 Combat Bots Only 4 | . 4 3 Max Kills in Single Turn 4 | 1 4 2 Gunslinging 1 | . . 1 Exploded 3 | . 3 . Melee . | . . . Uniques/NPCs Destroyed . | . . . Combat | -11 -10 -10 -------- Run | Yrd Mat Min Hostile Shots Fired 99 | . 57 42 Missed 25 | . 20 5 Hits 74 | . 37 37 Projectile 74 | . 37 37 AOE 13 | . . 13 Damage Taken 1029 | . 405 624 Core 252 | . 140 112 Absorbed by Shields . | . . . Core Remaining (%) 100 | 100 . . Volleys Fired 89 | 12 53 24 Largest 2 | 2 2 2 Hottest 50 | 40 50 40 Shots Fired 165 | 24 94 47 Gun 160 | 24 89 47 Cannon . | . . . Launcher 5 | . 5 . Special . | . . . Kinetic 160 | 24 89 47 Thermal . | . . . Explosive 5 | . 5 . Electromagnetic . | . . . Robot Hit Streak 13 | 13 9 2 Robot Miss Streak 6 | 2 6 4 Penetration Max . | . . . Secondary Targets 2 | . . 2 Max Gunslinging Chain 1 | . . 1 Shots Hit Robots 84 | 17 48 19 Core Hits 50 | 7 31 12 Critical Kills . | . . . Critical Parts Destroyed 1 | 1 . . Critical Strikes 1 | 1 . . Destroy 1 | 1 . . Melee Attacks 1 | . . 1 Impact 1 | . . 1 Slashing . | . . . Piercing . | . . . Sneak Attacks . | . . . Combat Hostiles . | . . . Follow-up Attacks . | . . . Damage Inflicted 1685 | 229 1158 298 Guns 1140 | 229 640 271 Cannons . | . . . Explosions 518 | . 518 . Melee 27 | . . 27 Ramming . | . . . Kinetic 1140 | 229 640 271 Thermal . | . . . Explosive 518 | . 518 . Electromagnetic . | . . . Impact 27 | . . 27 Slashing . | . . . Piercing . | . . . Highest Corruption . | . . . Average Corruption . | . . . Corruption Purged . | . . . Corruption Blocked . | . . . Overload Shots . | . . . Overflow Damage 13 | . 13 . Projectiles . | . . . Explosions 13 | . 13 . Melee . | . . . Knockbacks . | . . . Impact . | . . . Kinetic . | . . . Secondary . | . . . Self-Inflicted Damage 24 | . 24 . Shots 2 | . 2 . Rammed . | . . . Targets Rammed . | . . . Kicked . | . . . Crushed . | . . . Highest Temperature 6 | 6 2 . Average Temperature 4 | 6 2 . Received Heat Transfer 144 | . 144 . Siege Activations . | . . . Martial Activations . | . . . Shielding Activations . | . . . Robots Disrupted . | . . . Combat Hostiles . | . . . Robots Corrupted . | . . . Combat Hostiles . | . . . Parts Fried . | . . . Impact Corruptions . | . . . Robots Melted . | . . . Combat Hostiles . | . . . Parts Melted . | . . . Heat Transferred . | . . . Parts Sabotaged . | . . . Parts Stolen . | . . . Parts Stripped . | . . . Power Chain Reactions . | . . . Alert | -11 -10 -10 ------- Run | Yrd Mat Min Maximum Alert Level 1 | . 1 . Low Security (%) 96 | 100 92 100 Level 1 3 | . 7 . Level 2 . | . . . Level 3 . | . . . Level 4 . | . . . Level 5 . | . . . High Security . | . . . Max Security . | . . . Peak Influence 236 | 20 236 80 Initial . | . . . Average 35 | 4 61 13 Influence Increases 701 | 30 486 185 Destroy 0b10 Robot/C 440 | . 320 120 Destroy 0b10 Robot/NC 100 | 30 40 30 Destroy Leader 78 | . 58 20 Successful Hack 23 | . 23 . Disable Machine 15 | . 15 . Destroy Structure 15 | . 15 . Lose Combat Pursuer 30 | . 15 15 Influence Decreases 701 | 30 486 185 Time Decay 551 | 30 336 185 Purge Threat 150 | . 150 . Squads Dispatched 1 | . 1 . Investigation 1 | . 1 . Extermination . | . . . Reinforcement . | . . . Assault . | . . . Garrison . | . . . Intercept . | . . . Searches Triggered . | . . . Construction Impeded . | . . . Haulers Reinforced . | . . . Active Scanning Responses . | . . . Cargo Convoy Interrupts . | . . . Stealth | -11 -10 -10 --------- Run | Yrd Mat Min Distress Signals 1 | . 1 . Communications Jammed . | . . . Distress Signals . | . . . Times Spotted 30 | . 21 9 Peak Tracking Total 5 | . 5 3 Tactical Retreats 2 | . 1 1 Traps | -11 -10 -10 ------- Run | Yrd Mat Min Traps Triggered 2 | . 2 . Indirectly . | . . . Trap Hack Attempts . | . . . Triggered . | . . . Disarmed . | . . . Reprogrammed . | . . . Reused . | . . . Traps Extracted . | . . . Installed . | . . . Triggered . | . . . Machines | -11 -10 -10 ---------- Run | Yrd Mat Min Machines Disabled 1 | . 1 . Max in Single Turn 1 | . 1 . Machines Repaired . | . . . Machines Dismantled . | . . . Machines Sabotaged . | . . . Overloaded Fab Kills . | . . . Hacking | -11 -10 -10 --------- Run | Yrd Mat Min Machines Accessed 7 | . 7 . Terminals 7 | . 7 . Fabricators . | . . . Repair Stations . | . . . Recycling Units . | . . . Scanalyzers . | . . . Garrison Access . | . . . Total Hacks 25 | . 25 . Successful 14 | . 14 . Failed 11 | . 11 . Catastrophic 2 | . 2 . Database Lockouts . | . . . Manual 18 | . 18 . Terminals 25 | . 25 . Fabricators . | . . . Repair Stations . | . . . Recycling Units . | . . . Scanalyzers . | . . . Garrison Access . | . . . Terminal Hacks 7 | . 7 . Robot Analysis 3 | . 3 . Prototype ID Bank 2 | . 2 . Unreport Threat 1 | . 1 . Locate Traps 1 | . 1 . Fabricator Hacks . | . . . Repair Station Hacks . | . . . Recycling Unit Hacks . | . . . Scanalyzer . | . . . Garrison Access Hacks . | . . . Unauthorized Hacks 7 | . 7 . Terminals 7 | . 7 . Track 1 | . 1 . Botnet 5 | . 5 . Operators 1 | . 1 . Fabricators . | . . . Repair Stations . | . . . Recycling Units . | . . . Scanalyzers . | . . . Garrison Access . | . . . Data Cores Recovered . | . . . Used . | . . . Hacking Detections 6 | . 6 . Full Trace Events . | . . . Feedback Events . | . . . Feedback Blocked . | . . . Robot Schematics Acquired . | . . . Robots Built . | . . . Authchips . | . . . Time . | . . . Total Robot Build Rating . | . . . Part Schematics Acquired . | . . . Parts Built . | . . . Authchips . | . . . Time . | . . . Total Part Build Rating . | . . . Part Studies Acquired . | . . . Parts Repaired . | . . . Time . | . . . Parts Recycled . | . . . Recycled Matter . | . . . Retrieved Matter . | . . . Retrieved Components . | . . . Parts Scanalyzed . | . . . Part Schematics Acquired . | . . . Parts Damaged . | . . . Bothacking | -11 -10 -10 ------------ Run | Yrd Mat Min Used RIF Installer . | . . . Robots Hacked . | . . . Non-combat . | . . . Combat . | . . . Robot Hacks Applied . | . . . Relay Couplers Released . | . . . Fabnet Peak Effective % . | . . . Robots Rewired . | . . . Allies Hacked . | . . . Hacks Repelled . | . . . Allies | -11 -10 -10 -------- Run | Yrd Mat Min Total Allies 1 | . . 1 Largest Group 1 | . . 1 Highest-Rated Group 31 | . . 31 Highest-Rated Ally 31 | . . 31 Total Orders . | . . . Ally Attacks 1 | . . 1 Total Damage 21 | . . 21 Kills . | . . . Allies Corrupted . | . . . Allies Melted . | . . . Intel | -11 -10 -10 ------- Run | Yrd Mat Min Active Infowar (turns) 1915 | 18 934 963 Seismic 1915 | 18 934 963 Robot Analysis Total 3 | . 3 . Derelict Logs Recovered 2 | . . 2 Drone Launches . | . . . Drone Recoveries . | . . . Exploration | -11 -10 -10 ------------- Run | Yrd Mat Min Turns Passed 2035 | 123 934 978 Spaces Moved 1414 | 82 764 568 Core 6 | 5 . 1 Treads 6 | . 6 . Legs . | . . . Wheels 1402 | 77 758 567 Hover . | . . . Flight . | . . . Fastest Speed 50 | 50 80 95 Average Speed 90 | 81 87 95 Slowest Speed 400 | 150 160 400 Overloaded Moves . | . . . Propulsion Burnouts . | . . . Robots Hopped . | . . . Potential Cave-ins . | . . . Cave-ins Triggered . | . . . Exploration Rate (%) 58 | 3 90 83 Regions Visited 2 Branch Regions 1 Pre-discovered Areas . | . . . Known Exits Taken . | . . . Unknown Exits Taken 2 | 1 1 . Scrap Searched 1 | . . 1 Spaces Dug . | . . . Terrain Destroyed 16 | . 16 . Melee . | . . . Projectile . | . . . AOE 16 | . 16 . Terrain Rammed . | . . . Walls Destroyed . | . . . Machines Disabled . | . . . Actions | -11 -10 -10 --------- Run | Yrd Mat Min Total 2000 | 110 931 959 Wait 422 | . 70 352 Move 1412 | 81 763 568 Hop . | . . . Pick Up 23 | 9 13 1 Fast Attach 8 | 7 1 . Attach 3 | . . 3 Detach . | . . . Swap 28 | . 23 5 Drop 14 | 1 8 5 Fire 89 | 12 53 24 Melee 1 | . . 1 Ram . | . . . Kick . | . . . Crush . | . . . Escape Stasis . | . . . Rewire . | . . . Trap . | . . . Miscellaneous . | . . . Route ------- -11/Scrapyard -10/Materials (discovered 6 exits: [*Mat x3] / [*Min x2] / [*Sub]) -10/Mines (discovered 2 exits: [*Mat x2]) History --------- Turn | Location | Event 16 | -11/Scrapyard | Discovered new exit (range 16) 124 | -11/Scrapyard | Entered Materials 295 | -10/Materials | Discovered new exit (range 8) 322 | -10/Materials | Build established: Mutant 451 | -10/Materials | Discovered new exit (range 11) 517 | -10/Materials | Discovered new exit (range 9) 572 | -10/Materials | Core integrity fell below 50% 611 | -10/Materials | Discovered new exit (range 6) 679 | -10/Materials | Discovered new exit (range 5) 835 | -10/Materials | Discovered new exit (range 7) 1058 | -10/Materials | Entered Mines 1065 | -10/Mines | Discovered new exit (range 15) 1123 | -10/Mines | Learned Materials trap positions 1168 | -10/Mines | Learned Materials emergency access door positions 1195 | -10/Mines | Assembled infested the area 1200 | -10/Mines | Assisted by a Guerilla fighting off Assembled 1761 | -10/Mines | Core integrity fell below 20% 1868 | -10/Mines | Discovered new exit (range 10) 1896 | -10/Mines | Received a Mining Laser from a helpful Derelict 2036 | -10/Mines | Destroyed by D-53 Grenadier with Mini Grenade Launcher Last Messages --------------- 01978_ Acquired 10 matter. 01979_ Acquired 1 matter. 01980_ Acquired 4 matter. 01982_ Acquired 7 matter. 02002_ K-01 Serf destroyed. 02005_ Acquired 20 matter. 02006_ Extracted 79 matter. 02020_ Ion Engine destroyed. 02024_ The unstable cave ceiling collapses. 02024_ Wheel destroyed. 02024_ Assault Rifle destroyed. 02028_ The unstable cave ceiling collapses. 02028_ Shield Generator destroyed. 02030_ Assault Rifle destroyed. 02030_ Ion Engine destroyed. 02030_ Wheel destroyed. 02031_ The unstable cave ceiling collapses. 02034_ Wheel destroyed. 02034_ D-53 Grenadier destroyed. 02035_ The unstable cave ceiling collapses. Map ----- +----------------------------------------------------+ | ###### ## ## ####?????????? | | ##### ### ## #????????????? | | ###### #???#####?#######?## ##????????????? | | #????# #??????????????????## ####?????????????? | | #????# #???????????????????## #????????????????? | | ###### #???????????????????? #????????????????? | | #???####?????????????# #????????????????? | | ### ####??? #???????????## ## ??????????????? | | ##?# #????? ???????????# ??????????????? | | #??# #????? """#???????????# $??????????????? | | ???# #???? """#???????????? ???????????????? | | ???# #???? """#???????????? #???????????????? | | ???# #??? #???????????? #???????????????? | | ???# #### """#???????????? #?????###???????? | | ???# """#????????????# #????# ##??????? | | ???#### # """#????????????# ###### ##?????? | | ??????#|# #?????????#### #### < #?????? | | ??????#*#? #????????# ## ???????? | | ??????# #?######????????# # #??????????? | | ####### #??????????????## = #??????????? | | #??????????????# %! ##?????????? | | ###### ##????????????### #[ # ##????????? | | ###### #????????????## # # # ##???????? | | # #???????????## # #### ##??????? | | # ######??????????## d # #??## ##?????? | | # #?????########??# @ # ####### ######? | | #*#?????# #??# # #?### ## | | #=#?????# #?# #### #???## # | | # #?????# """ ### #### #????##### | | #!#?????# """ ### ##???????# | | # #?????# """ ##### # # ##??????# # | | # #?????# #???## # ### ##?????# ### | | # ##????##### ##????## #### ####### #?? | | ########## ####### #### #?? | | #### ####### #?? | | #### ##?????# #?? | | ################ #####??????# #?? | | #????????????## #?????????# ### | | ##???????????# ## #?????????# | | # ##??????????# #### ## ##?????????# | | # ##????????## #??## ##?###??????????###### | | #????????# ##??## #?????????????????### | | #????????# ##??### #????????????????## | | ##???????## #????####????????????????# | | ##????????# #????????????????????????## | | #?????????# " #?????????????????????????### | | #?????????# #???????????????????????????? | | ##?????????## #???????????????????????????? | | ##???????????## #???????????????????????????? | | ##??????????????## ##???????????????????????????? | +----------------------------------------------------+ Best States ------------- Heat Dissipation 25 Energy Generation 10 Energy Capacity 250 Matter Stores 300 Matter Capacity 300 Sight Range 16 Terrain Scan Density 10 Evasion (%) 44 Recoil Reduction 2 Item Schematics ----------------- None Robot Schematics ------------------ None Fabricated ------------ Nothing Repaired ---------- Nothing Studied --------- None Alien Tech Used ----------------- None Achievements -------------- None Challenges ------------ None Game ------ Seed ProjectileGravityNeutralizer Manual? 0 Play Time 00:16:56 Cumulative 408.6 hours Start 2026.02.26 @ 13:40:36 End 2026.02.26 @ 13:57:17 Sessions 1 Manual Loads 0 Difficulty Rogue Special Mode None Game No. 457 Rogue 457 Adventurer 0 Explorer 0 Win Type - Total 6 Types 3/1/1/1/0/0/0/0/0/0 Lore% 76 Gallery% 68 Achievement% 44 Wizard Run 0 Options --------- Layout 1 ASCII 0 Keyboard 0 Movement Numpad Keybinds 0 Fullscreen 1 Font 32/SmallcapsGlow Map View 50x35 Zoom Use 0% Tactical HUD 1 Map Filters NONE Filters NONE Steam 1 RUN: 81cfdf99-afa4-4c23-bd05-7517483d0593